bitfinex/quotes_SOLUSD_20241223
["timestamp","ask_amount","ask_price","bid_price","bid_amount"]
[1734914092173,44.29552284,178.17,178.09,44.29552284]
[1734914092376,44.29552284,178.18,178.11,44.29552284]
[1734914093465,44.29552284,178.19,178.11,44.29552284]
[1734914093771,44.29552284,178.18,178.11,44.29552284]
[1734914094754,31.2209,178.24,178.11,44.29552284]
[1734914094755,44.29552284,178.19,178.11,44.29552284]
[1734914094956,44.29552284,178.15,178.02,6.0858]
[1734914095181,44.29552284,178.15,178.07,44.29552284]
[1734914095565,44.29552284,178.17,178.09,44.29552284]
[1734914095765,44.29552284,178.18,178.12,6.0858]
[1734914096060,44.29552284,178.2,178.12,6.0858]
[1734914096576,44.29552284,178.2,178.13,44.29552284]
[1734914096979,44.29552284,178.2,178.12,6.92766938]
[1734914096980,44.29552284,178.22,178.14,44.29552284]
[1734914097359,44.29552284,178.24,178.16,68.07240684]
[1734914097558,44.29552284,178.24,178.17,44.29552284]
[1734914097974,44.29552284,178.24,178.16,44.29552284]
[1734914098479,44.29552284,178.26,178.18,44.29552284]
[1734914098682,1.9678,178.33,178.18,44.29552284]
[1734914098683,44.29552284,178.28,178.2,44.29552284]
[1734914098972,1.9678,178.33,178.18,6.0255]
[1734914098973,44.29552284,178.23,178.18,6.0255]
[1734914099175,44.29552284,178.29,178.18,6.0255]
[1734914099176,44.29552284,178.21,178.18,6.0255]
[1734914099365,44.29552284,178.22,178.18,6.0255]
[1734914099679,44.29552284,178.21,178.18,6.0255]
[1734914099881,44.29552284,178.2,178.16,1.8245]
[1734914100178,44.29552284,178.17,178.11,1.9548]
[1734914100549,20.0,178.22,178.11,1.9548]
[1734914100753,44.29552284,178.16,178.11,1.9548]
[1734914100980,44.29552284,178.13,178.09,6.6603]
[1734914101281,44.29552284,178.15,178.09,6.6603]
[1734914101461,44.29552284,178.14,178.09,6.6603]
[1734914101958,44.29552284,178.15,178.09,6.6603]
[1734914102652,44.29552284,178.15,178.08,44.29552284]
[1734914102653,44.29552284,178.15,178.05,23.776884]
[1734914102858,44.29552284,178.15,178.08,44.29552284]
[1734914103176,44.29552284,178.13,178.05,44.29552284]
[1734914103476,44.29552284,178.13,178.06,4.02740377]
[1734914103679,44.29552284,178.15,178.07,44.29552284]
[1734914105158,44.29552284,178.13,178.05,44.29552284]
[1734914105483,44.29552284,178.09,178.01,50.34072284]
[1734914106579,44.29552284,178.09,178.0,1.9114]
[1734914106580,44.29552284,178.11,177.97,6.3101]
[1734914106793,44.29552284,178.03,177.97,6.3101]
[1734914107169,44.29552284,178.05,177.97,50.60562284]
[1734914107569,44.29552284,178.05,177.97,6.3101]
[1734914107797,44.29552284,178.02,177.97,6.3101]
[1734914108000,44.29552284,178.03,177.97,6.3101]
[1734914108502,44.29552284,178.02,177.97,6.3101]
[1734914108797,44.29552284,178.01,177.97,6.3101]
[1734914108957,44.29552284,177.98,177.92,6.5998]
[1734914109157,44.29552284,177.98,177.91,0.7006392]
[1734914109158,44.29552284,177.95,177.91,0.7006392]
[1734914109567,44.29552284,177.96,177.91,0.7006392]
[1734914109774,44.29552284,177.99,177.92,50.89532284]
[1734914110185,44.29552284,178.0,177.92,50.89532284]
[1734914111192,44.29552284,177.99,177.92,50.89532284]
[1734914111482,44.29552284,177.96,177.92,6.5998]
[1734914112273,44.29552284,177.98,177.92,6.5998]
[1734914112475,44.29552284,178.03,177.95,44.29552284]
[1734914112783,44.29552284,178.05,177.97,44.29552284]
[1734914112981,44.29552284,178.03,177.95,44.29552284]
[1734914113187,1.9131,178.1,177.93,23.776884]
[1734914113771,1.9131,178.1,177.92,6.5998]
[1734914114290,44.29552284,178.0,177.93,44.29552284]
[1734914114498,44.29552284,178.01,177.94,23.776884]
[1734914114690,44.29552284,178.03,177.95,44.29552284]
[1734914114868,44.29552284,178.02,177.95,44.29552284]
[1734914115189,44.29552284,178.02,177.93,23.776884]
[1734914115190,44.29552284,178.02,177.94,44.29552284]
[1734914115591,13.1431,178.1,177.93,68.07240684]
[1734914115592,44.29552284,178.01,177.93,68.07240684]
[1734914115784,44.29552284,178.02,177.94,44.29552284]
[1734914115979,44.29552284,178.0,177.93,23.776884]
[1734914116189,44.29552284,177.98,177.92,6.5998]
[1734914116974,44.29552284,177.97,177.91,0.7006392]
[1734914117174,44.29552284,178.02,177.91,0.7006392]
[1734914117382,44.29552284,177.95,177.91,0.7006392]
[1734914118289,44.29552284,177.94,177.91,0.7006392]
[1734914118465,44.29552284,177.93,177.91,0.7006392]
[1734914118669,1.797,178.0,177.91,0.7006392]
[1734914118670,44.29552284,177.92,177.91,0.7006392]
[1734914118870,44.29552284,177.93,177.91,0.7006392]
[1734914119071,1.797,178.0,177.91,0.7006392]
[1734914119072,44.29552284,177.92,177.91,0.7006392]
[1734914119494,44.29552284,177.93,177.91,0.7006392]
[1734914120169,44.29552284,177.95,177.91,0.7006392]
[1734914120773,44.29552284,177.97,177.91,0.7006392]
[1734914120979,44.29552284,177.99,177.91,51.36636204]
[1734914121182,44.29552284,177.99,177.91,53.33046204]
[1734914121469,44.29552284,178.01,177.93,44.29552284]
[1734914121812,44.29552284,178.05,177.97,44.29552284]
[1734914122997,44.29552284,178.05,177.94,0.84268287]
[1734914123202,44.29552284,178.12,178.04,44.29552284]
[1734914123376,44.29552284,178.12,178.05,44.29552284]
[1734914124101,44.29552284,178.14,178.05,44.29552284]
[1734914124281,44.29552284,178.1,178.02,44.29552284]
[1734914124601,44.29552284,178.08,178.02,44.29552284]
[1734914124988,44.29552284,178.11,178.03,44.29552284]
[1734914125281,44.29552284,178.15,178.07,44.29552284]
[1734914125489,50.77572284,178.2,178.07,44.29552284]
[1734914125490,44.29552284,178.14,178.07,44.29552284]
[1734914125694,44.29552284,178.12,178.04,44.29552284]
[1734914126080,44.29552284,178.14,178.06,44.29552284]
[1734914127205,44.29552284,178.12,178.04,44.29552284]
[1734914127506,44.29552284,178.1,178.02,44.29552284]
[1734914128102,44.29552284,178.08,178.0,46.09202284]
[1734914128689,44.29552284,178.08,178.0,44.29552284]
[1734914130187,44.29552284,178.04,177.96,44.29552284]
[1734914131605,44.29552284,178.06,177.98,44.29552284]
[1734914132504,44.29552284,178.08,178.0,44.29552284]
[1734914133605,46.10732284,178.11,177.96,44.29552284]
[1734914133606,44.29552284,178.04,177.96,44.29552284]
[1734914133905,44.29552284,178.0,177.93,6.0711]
[1734914134884,44.29552284,178.02,177.94,44.29552284]
[1734914135294,44.29552284,178.04,177.96,44.29552284]
[1734914135782,44.29552284,178.02,177.94,44.29552284]
[1734914137414,44.29552284,178.04,177.96,44.29552284]
[1734914137588,44.29552284,178.06,177.98,44.29552284]
[1734914138099,46.10732284,178.11,177.95,44.29552284]
[1734914138100,44.29552284,178.04,177.95,44.29552284]
[1734914139554,44.29552284,178.04,177.97,44.29552284]
[1734914140719,44.29552284,178.04,177.95,68.07240684]
[1734914141009,44.29552284,178.0,177.93,50.36662284]
[1734914141190,44.29552284,178.0,177.93,6.0711]
[1734914142612,44.29552284,177.98,177.93,6.0711]
[1734914145215,44.29552284,178.02,177.93,50.36662284]
[1734914145426,44.29552284,178.0,177.93,50.36662284]
[1734914146719,44.29552284,178.01,177.94,44.29552284]
[1734914146918,44.29552284,178.01,177.94,48.33328579]
[1734914147422,44.29552284,178.01,177.94,44.29552284]
[1734914148214,44.29552284,178.0,177.93,6.0711]
[1734914148389,44.29552284,177.98,177.93,6.0711]
[1734914149212,44.29552284,177.98,177.91,0.7006392]
[1734914149415,44.29552284,177.96,177.91,0.7006392]
[1734914149619,44.29552284,177.94,177.92,4.04324244]
[1734914150194,44.29552284,177.93,177.91,0.7006392]
[1734914150395,44.29552284,177.92,177.91,0.7006392]
[1734914159433,46.19162284,177.92,177.91,0.7006392]
[1734914159612,44.29552284,177.92,177.91,0.7006392]
[1734914160006,44.29552284,177.94,177.91,0.7006392]
[1734914160719,44.29552284,177.93,177.91,0.7006392]
[1734914162612,20.0,177.97,177.91,0.7006392]
[1734914162824,44.29552284,177.94,177.91,0.7006392]
[1734914163029,44.29552284,177.92,177.91,0.7006392]
[1734914163702,44.29552284,177.93,177.91,0.7006392]
[1734914165215,44.29552284,177.92,177.91,0.7006392]
[1734914165525,44.29552284,177.93,177.91,0.7006392]
[1734914166029,44.29552284,177.92,177.91,0.7006392]
[1734914167116,44.29552284,177.93,177.91,0.7006392]
[1734914171310,88.59104568,177.93,177.91,0.7006392]
[1734914171808,8.2364,177.92,177.91,0.7006392]
[1734914172920,1.8859,177.92,177.91,0.7006392]
[1734914173958,44.29552284,177.93,177.91,0.7006392]
[1734914174315,88.59104568,177.93,177.91,0.7006392]
[1734914177409,20.0,177.88,177.85,2.25605835]
[1734914177616,88.59104568,177.86,177.85,2.25605835]
[1734914178120,44.29552284,177.86,177.85,2.25605835]
[1734914180221,27.35865763,177.86,177.85,2.25605835]
[1734914182041,27.35865763,177.93,177.85,2.25605835]
[1734914182042,27.35865763,177.88,177.85,2.25605835]
[1734914182542,17.11059954,178.01,177.85,29.61471598]
[1734914182723,27.35865763,177.95,177.87,27.35865763]
[1734914183122,27.35865763,177.97,177.89,27.35865763]
[1734914183321,27.35865763,177.97,177.9,23.776884]
[1734914183536,2.20309642,178.05,177.93,27.35865763]
[1734914183537,27.35865763,178.01,177.93,27.35865763]
[1734914183742,27.35865763,177.99,177.91,51.13554163]
[1734914183935,27.35865763,177.97,177.89,27.35865763]
[1734914184244,44.4009423,177.96,177.89,23.776884]
[1734914184620,44.4009423,177.96,177.9,4.08339833]
[1734914185341,44.4009423,177.96,177.89,23.776884]
[1734914186240,44.4009423,178.11,177.93,23.776884]
[1734914186241,44.4009423,178.0,177.93,23.776884]
[1734914186543,44.4009423,178.0,177.92,44.4009423]
[1734914186544,44.4009423,177.98,177.91,23.776884]
[1734914187221,44.4009423,178.0,177.91,23.776884]
[1734914187744,44.4009423,178.02,177.94,44.4009423]
[1734914190333,44.4009423,178.04,177.96,44.4009423]
[1734914190729,44.4009423,178.12,178.02,44.4009423]
[1734914190921,44.4009423,178.12,178.05,44.4009423]
[1734914191327,44.4009423,178.1,177.98,0.84228478]
[1734914191667,44.4009423,178.1,178.02,44.4009423]
[1734914192768,44.4009423,178.1,178.03,23.776884]
[1734914193141,44.4009423,178.12,178.04,44.4009423]
[1734914193437,44.4009423,178.18,178.1,44.4009423]
[1734914194356,44.4009423,178.16,178.08,46.2147423]
[1734914195460,44.4009423,178.16,178.08,1.8138]
[1734914195629,44.4009423,178.14,178.08,1.8138]
[1734914197262,44.4009423,178.1,178.07,6.2139]
[1734914197556,28.609833,178.27,178.08,44.4009423]
[1734914197758,44.4009423,178.2,178.13,1.8621]
[1734914197948,44.4009423,178.22,178.14,44.4009423]
[1734914199362,44.4009423,178.26,178.18,44.4009423]
[1734914200037,44.4009423,178.28,178.2,44.4009423]
[1734914202080,44.4009423,178.28,178.22,44.4009423]
[1734914202279,44.4009423,178.3,178.22,44.4009423]
[1734914203288,44.4009423,178.32,178.24,44.4009423]
[1734914204279,44.4009423,178.32,178.24,46.3374423]
[1734914204482,45.1015815,178.36,178.28,44.4009423]
[1734914204778,0.7006392,178.36,178.3,44.4009423]
[1734914205453,0.7006392,178.36,178.32,44.4009423]
[1734914206066,0.7006392,178.36,178.29,44.4009423]
[1734914206385,0.7006392,178.36,178.3,44.4009423]
[1734914206598,0.7006392,178.36,178.34,44.4009423]
[1734914206755,44.4009423,178.46,178.35,76.3977263]
[1734914207132,44.4009423,178.47,178.39,44.4009423]
[1734914207376,44.4009423,178.47,178.35,31.996784]
[1734914207377,44.4009423,178.48,178.41,44.4009423]
[1734914207681,44.4009423,178.46,178.39,23.776884]
[1734914208276,44.4009423,178.46,178.39,68.1778263]
[1734914209157,44.4009423,178.48,178.41,44.4009423]
[1734914209389,44.4009423,178.51,178.44,44.4009423]
[1734914209663,44.4009423,178.53,178.46,50.8342423]
[1734914209977,0.7006392,178.54,178.48,44.4009423]
[1734914210198,0.7006392,178.54,178.5,44.4009423]
[1734914210551,0.7006392,178.54,178.53,23.776884]
[1734914211176,44.4009423,178.65,178.53,23.776884]
[1734914211495,0.7006392,178.72,178.55,23.776884]
[1734914211496,44.4009423,178.62,178.55,23.776884]
[1734914211782,44.4009423,178.6,178.54,44.4009423]
[1734914211954,44.4009423,178.57,178.5,44.4009423]
[1734914212163,44.4009423,178.57,178.47,1.782]
[1734914212164,44.4009423,178.57,178.49,23.776884]
[1734914212360,44.4009423,178.57,178.5,44.4009423]
[1734914212565,44.4009423,178.55,178.48,44.4009423]
[1734914212898,44.4009423,178.57,178.48,44.4009423]
[1734914213099,44.4009423,178.59,178.5,44.4009423]
[1734914213296,44.4009423,178.61,178.52,44.4009423]
[1734914213596,44.4009423,178.59,178.52,44.4009423]
[1734914213783,44.4009423,178.57,178.5,44.4009423]
[1734914214275,44.4009423,178.55,178.48,44.4009423]
[1734914214469,44.4009423,178.57,178.5,44.4009423]
[1734914214856,44.4009423,178.65,178.49,23.776884]
[1734914214857,44.4009423,178.6,178.52,44.4009423]
[1734914215058,44.4009423,178.62,178.54,44.4009423]
[1734914215475,44.4009423,178.64,178.56,44.4009423]
[1734914216264,44.4009423,178.62,178.54,44.4009423]
[1734914216476,44.4009423,178.65,178.52,44.4009423]
[1734914216477,44.4009423,178.6,178.52,44.4009423]
[1734914216878,44.4009423,178.58,178.5,44.4009423]
[1734914217390,44.4009423,178.62,178.54,44.4009423]
[1734914217762,44.4009423,178.62,178.55,23.776884]
[1734914218377,44.4009423,178.6,178.52,44.4009423]
[1734914218774,44.4009423,178.6,178.53,23.776884]
[1734914219190,44.4009423,178.6,178.52,44.4009423]
[1734914219191,44.4009423,178.64,178.57,23.776884]
[1734914219994,44.4009423,178.6,178.52,46.2847423]
[1734914220209,44.4009423,178.6,178.52,44.4009423]
[1734914220428,44.4009423,178.56,178.48,44.4009423]
[1734914220777,44.4009423,178.6,178.52,44.4009423]
[1734914221083,11.1913,178.71,178.54,44.4009423]
[1734914221084,44.4009423,178.62,178.54,44.4009423]
[1734914221707,44.4009423,178.6,178.52,44.4009423]
[1734914221924,44.4009423,178.65,178.5,44.4009423]
[1734914221925,44.4009423,178.58,178.5,44.4009423]
[1734914222206,44.4009423,178.65,178.45,2.72395058]
[1734914222207,44.4009423,178.56,178.48,44.4009423]
[1734914222787,44.4009423,178.58,178.5,44.4009423]
[1734914223382,44.4009423,178.56,178.48,44.4009423]
[1734914224695,44.4009423,178.56,178.49,23.776884]
[1734914224894,8.257,178.75,178.55,44.4009423]
[1734914225120,8.257,178.75,178.61,23.776884]
[1734914225325,44.4009423,178.69,178.61,23.776884]
[1734914225509,44.4009423,178.71,178.63,23.776884]
[1734914227412,44.4009423,178.73,178.64,44.4009423]
[1734914227612,44.4009423,178.73,178.65,23.776884]
[1734914228418,44.4009423,178.71,178.62,44.4009423]
[1734914228621,44.4009423,178.74,178.59,44.4009423]
[1734914228622,44.4009423,178.67,178.59,44.4009423]
[1734914229298,44.4009423,178.74,178.57,46.1882423]
[1734914229299,44.4009423,178.64,178.57,46.1882423]
[1734914229714,44.4009423,178.66,178.57,46.1882423]
[1734914230007,44.4009423,178.68,178.59,44.4009423]
[1734914231099,44.4009423,178.66,178.59,44.4009423]
[1734914231513,44.4009423,178.64,178.58,23.776884]
[1734914232238,44.4009423,178.66,178.58,23.776884]
[1734914233224,44.4009423,178.66,178.59,44.4009423]
[1734914233514,44.4009423,178.7,178.63,44.4009423]
[1734914233730,45.1015815,178.72,178.64,23.776884]
[1734914234112,45.1015815,178.72,178.65,44.4009423]
[1734914234317,0.7006392,178.72,178.66,23.776884]
[1734914235397,0.7006392,178.72,178.7,23.776884]
[1734914235898,0.7006392,178.72,178.71,44.4009423]
[1734914236101,0.7006392,178.72,178.71,68.1778263]
[1734914236722,0.7006392,178.9,178.71,68.1778263]
[1734914236723,44.4009423,178.84,178.71,68.1778263]
[1734914236929,44.4009423,178.86,178.78,44.4009423]
[1734914237100,44.4009423,178.88,178.8,44.4009423]
[1734914237520,44.4009423,178.88,178.81,23.776884]
[1734914237730,44.4009423,178.84,178.78,6.2729]
[1734914238030,44.4009423,178.83,178.78,6.2729]
[1734914238413,44.4009423,178.8,178.73,23.776884]
[1734914239124,44.4009423,178.82,178.74,44.4009423]
[1734914239333,44.4009423,178.82,178.75,23.776884]
[1734914239517,44.4009423,178.82,178.74,44.4009423]
[1734914239827,43.9009423,178.8,178.74,23.776884]
[1734914241226,43.9009423,178.8,178.73,44.4009423]
[1734914241425,44.4009423,178.82,178.74,23.776884]
[1734914241623,44.4009423,178.84,178.76,23.776884]
[1734914241931,44.4009423,178.84,178.77,44.4009423]
[1734914242307,44.4009423,178.88,178.8,23.776884]
[1734914242926,0.7006392,178.9,178.83,44.4009423]
[1734914243206,0.7006392,178.9,178.85,44.4009423]
[1734914243513,0.7006392,178.9,178.87,44.4009423]
[1734914243833,0.7006392,178.9,178.89,68.1778263]
[1734914244821,0.7006392,178.9,178.85,44.4009423]
[1734914245025,0.7006392,178.9,178.86,23.776884]
[1734914246925,44.4009423,178.88,178.83,6.4135]
[1734914248942,45.1015815,178.9,178.83,50.8144423]
[1734914249312,45.1015815,178.9,178.83,6.4135]
[1734914249950,44.4009423,178.85,178.78,50.6071423]
[1734914250139,1.9395,179.15,178.85,6.2659]
[1734914250315,45.1015815,179.09,178.99,44.4009423]
[1734914250515,0.7006392,179.09,179.01,44.4009423]
[1734914250753,0.7006392,179.09,179.03,44.4009423]
[1734914251134,0.7006392,179.09,179.05,44.4009423]
[1734914251350,0.7006392,179.09,179.01,44.4009423]
[1734914251351,0.7006392,179.09,179.07,44.4009423]
[1734914251648,0.7006392,179.09,179.08,0.83733752]
[1734914252192,0.7006392,179.09,179.08,64.31210009]
[1734914253728,0.7006392,179.09,179.08,64.43759009]
[1734914254132,39.69787857,179.26,179.1,23.776884]
[1734914254426,6.4734,179.3,179.1,23.776884]
[1734914254427,39.69787857,179.28,179.19,39.69787857]
[1734914255229,39.69787857,179.28,179.2,23.776884]
[1734914255773,39.69787857,179.26,179.17,39.69787857]
[1734914255971,39.69787857,179.24,179.15,39.69787857]
[1734914256461,20.0,179.21,179.17,39.69787857]
[1734914256872,20.0,179.21,179.15,39.69787857]
[1734914257233,39.69787857,179.24,179.15,39.69787857]
[1734914257668,20.0,179.21,179.15,39.69787857]
[1734914257972,39.69787857,179.2,179.13,39.69787857]
[1734914258274,20.0,179.17,179.11,39.69787857]
[1734914258480,20.0,179.17,179.09,39.69787857]
[1734914258638,20.0,179.15,179.09,39.69787857]
[1734914258838,39.69787857,179.2,179.13,39.69787857]
[1734914259047,20.0,179.23,179.15,39.69787857]
[1734914259279,39.69787857,179.26,179.17,39.69787857]
[1734914259645,39.69787857,179.24,179.17,39.69787857]
[1734914260342,0.7006392,179.27,179.17,39.69787857]
[1734914260343,39.69787857,179.26,179.17,39.69787857]
[1734914260756,20.0,179.23,179.17,39.69787857]
[1734914261753,39.69787857,179.22,179.13,39.69787857]
[1734914262560,20.0,179.17,179.11,39.69787857]
[1734914262767,20.0,179.17,179.09,39.69787857]
[1734914263143,20.0,179.17,179.11,39.69787857]
[1734914263363,20.0,179.17,179.13,39.69787857]
[1734914264269,20.0,179.17,179.11,39.69787857]
[1734914264468,39.69787857,179.2,179.11,39.69787857]
[1734914264650,39.69787857,179.2,179.13,39.69787857]
[1734914264852,39.69787857,179.22,179.13,39.69787857]
[1734914265248,20.0,179.19,179.14,23.776884]
[1734914265671,20.0,179.19,179.15,39.69787857]
[1734914266069,39.69787857,179.24,179.16,23.776884]
[1734914266275,20.0,179.21,179.15,39.69787857]
[1734914266855,39.69787857,179.22,179.13,39.69787857]
[1734914267067,20.0,179.19,179.13,39.69787857]
[1734914267375,20.0,179.19,179.03,20.384]
[1734914267376,20.0,179.19,179.11,39.69787857]
[1734914268682,20.0,179.17,179.11,39.69787857]
[1734914268851,39.69787857,179.2,179.11,39.69787857]
[1734914269056,39.69787857,179.24,179.16,39.69787857]
[1734914269371,20.0,179.21,179.16,39.69787857]
[1734914269784,0.7006392,179.27,179.2,39.69787857]
[1734914271183,20.0,179.26,179.2,39.69787857]
[1734914271396,0.7006392,179.27,179.22,39.69787857]
[1734914273893,0.7006392,179.27,179.24,39.69787857]
[1734914274201,0.7006392,179.27,179.26,63.47476257]
[1734914274362,0.7006392,179.27,179.26,63.60025257]
[1734914274974,0.7006392,179.27,179.26,70.26645257]
[1734914275293,0.7006392,179.27,179.26,71.10285186]
[1734914280289,0.7006392,179.27,179.26,40.53427786]
[1734914280507,0.7006392,179.27,179.25,39.69787857]
[1734914280667,0.7006392,179.27,179.2,6.3301]
[1734914280864,0.7006392,179.27,179.23,39.69787857]
[1734914281288,0.7006392,179.27,179.25,39.69787857]
[1734914282391,0.7006392,179.27,179.23,39.69787857]
[1734914282601,0.7006392,179.27,179.21,39.69787857]
[1734914283271,39.69787857,179.22,179.15,39.69787857]
[1734914283478,39.69787857,179.22,179.1,6.2843]
[1734914283479,39.69787857,179.25,179.17,39.69787857]
[1734914283688,0.7006392,179.27,179.21,39.69787857]
[1734914285384,0.7006392,179.27,179.23,39.69787857]
[1734914286289,0.7006392,179.27,179.22,23.776884]
[1734914286673,39.69787857,179.26,179.17,39.69787857]
[1734914287593,39.69787857,179.24,179.17,39.69787857]
[1734914287994,39.69787857,179.24,179.15,39.69787857]
[1734914288175,39.69787857,179.22,179.15,39.69787857]
[1734914288375,39.69787857,179.24,179.15,39.69787857]
[1734914290198,20.0,179.21,179.15,39.69787857]
[1734914290715,39.69787857,179.2,179.11,39.69787857]
[1734914292198,39.69787857,179.2,179.12,23.776884]
[1734914293482,39.69787857,179.2,179.11,39.69787857]
[1734914294005,20.0,179.17,179.11,39.69787857]
[1734914294297,39.69787857,179.16,179.09,39.69787857]
[1734914294600,39.69787857,179.18,179.11,39.69787857]
[1734914295076,39.69787857,179.18,179.09,39.69787857]
[1734914295814,39.69787857,179.14,179.07,39.69787857]
[1734914295972,39.69787857,179.14,179.08,4.05000209]
[1734914296783,39.69787857,179.14,179.07,39.69787857]
[1734914297705,39.69787857,179.14,179.08,4.0504345]
[1734914298209,39.69787857,179.14,179.07,39.69787857]
[1734914299202,39.69787857,179.14,179.05,39.69787857]
[1734914299393,39.69787857,179.12,179.05,39.69787857]
[1734914299594,39.69787857,179.16,179.07,39.69787857]
[1734914299781,39.69787857,179.18,179.11,39.69787857]
[1734914300277,39.69787857,179.18,179.11,43.8020323]
[1734914300278,43.8020323,179.18,179.11,43.8020323]
[1734914300475,43.8020323,179.18,179.09,43.8020323]
[1734914300695,43.8020323,179.16,179.09,43.8020323]
[1734914301285,45.7787323,179.2,179.13,43.8020323]
[1734914301491,1.8165,179.25,179.17,43.8020323]
[1734914301684,1.8165,179.25,179.18,23.776884]
[1734914301922,1.8165,179.25,179.19,43.8020323]
[1734914302123,43.8020323,179.26,179.19,43.8020323]
[1734914302281,40.37034398,179.27,179.21,39.66970478]
[1734914302618,0.7006392,179.27,179.22,39.66970478]
[1734914304733,0.7006392,179.27,179.24,39.66970478]
[1734914304892,0.7006392,179.27,179.25,39.66970478]
[1734914305678,0.7006392,179.27,179.26,39.66970478]
[1734914305879,0.7006392,179.27,179.26,63.44658878]
[1734914307188,0.7006392,179.27,179.23,39.66970478]
[1734914307511,0.7006392,179.27,179.25,39.66970478]
[1734914307884,0.7006392,179.27,179.26,39.66970478]
[1734914308090,0.7006392,179.27,179.26,40.50635516]
[1734914308304,0.7006392,179.27,179.26,40.63184516]
[1734914308709,0.7006392,179.27,179.26,64.40872916]
[1734914309015,39.66970478,179.43,179.31,23.776884]
[1734914309213,39.66970478,179.43,179.36,39.66970478]
[1734914309813,39.66970478,179.43,179.33,23.776884]
[1734914309814,40.37034398,179.45,179.37,39.66970478]
[1734914310021,40.37034398,179.45,179.38,39.66970478]
[1734914310719,0.7006392,179.45,179.38,39.66970478]
[1734914310895,0.7006392,179.45,179.39,39.66970478]
[1734914311209,0.7006392,179.45,179.38,39.66970478]
[1734914311418,0.7006392,179.45,179.39,39.66970478]
[1734914311913,39.66970478,179.44,179.37,39.66970478]
[1734914312137,39.66970478,179.4,179.32,39.66970478]
[1734914312487,39.66970478,179.4,179.3,26.2849]
[1734914312488,39.66970478,179.39,179.31,39.66970478]
[1734914312694,39.66970478,179.37,179.3,39.66970478]
[1734914312992,39.66970478,179.38,179.3,39.66970478]
[1734914313604,39.66970478,179.38,179.31,39.66970478]
[1734914314112,39.66970478,179.39,179.31,39.66970478]
[1734914314610,20.0,179.37,179.32,39.66970478]
[1734914314816,20.0,179.39,179.34,39.66970478]
[1734914315015,39.66970478,179.38,179.31,39.66970478]
[1734914315199,39.66970478,179.38,179.29,63.44658878]
[1734914315394,39.66970478,179.34,179.27,39.66970478]
[1734914315602,39.66970478,179.33,179.25,39.66970478]
[1734914316320,39.66970478,179.29,179.22,39.66970478]
[1734914316901,39.66970478,179.3,179.22,39.66970478]
[1734914317100,39.66970478,179.31,179.23,39.66970478]
[1734914317302,39.66970478,179.31,179.24,39.66970478]
[1734914317611,20.0,179.3,179.26,39.66970478]
[1734914318513,39.66970478,179.34,179.27,39.66970478]
[1734914318709,39.66970478,179.36,179.28,39.66970478]
[1734914318921,39.66970478,179.37,179.29,39.66970478]
[1734914319928,39.66970478,179.35,179.27,39.66970478]
[1734914320544,39.66970478,179.33,179.25,39.66970478]
[1734914320701,39.66970478,179.31,179.23,39.66970478]
[1734914322202,43.74629594,179.3,179.22,43.74629594]
[1734914323220,43.74629594,179.32,179.24,43.74629594]
[1734914323530,43.74629594,179.35,179.28,43.74629594]
[1734914323718,43.74629594,179.37,179.3,43.74629594]
[1734914324125,43.74629594,179.38,179.3,43.74629594]
[1734914324426,43.74629594,179.36,179.29,43.74629594]
[1734914324625,43.74629594,179.35,179.28,43.74629594]
[1734914326926,43.74629594,179.35,179.26,43.74629594]
[1734914327137,43.74629594,179.33,179.26,43.74629594]
[1734914327612,43.74629594,179.31,179.24,43.74629594]
[1734914329626,43.74629594,179.3,179.23,43.74629594]
[1734914329838,43.74629594,179.3,179.22,43.74629594]
[1734914330135,43.74629594,179.31,179.23,43.74629594]
[1734914330316,20.0,179.31,179.27,43.74629594]
[1734914330507,20.0,179.32,179.27,43.74629594]
[1734914330707,20.0,179.32,179.28,43.74629594]
[1734914330946,20.0,179.32,179.24,0.83666564]
[1734914331234,63.74629594,179.32,179.24,43.74629594]
[1734914331525,43.74629594,179.31,179.24,43.74629594]
[1734914331742,43.74629594,179.31,179.21,0.83655711]
[1734914331743,43.74629594,179.31,179.23,43.74629594]
[1734914332608,43.74629594,179.31,179.24,43.74629594]
[1734914333011,43.74629594,179.32,179.24,43.74629594]
[1734914333641,43.74629594,179.31,179.23,43.74629594]
[1734914334783,43.74629594,179.3,179.22,43.74629594]
[1734914335335,43.74629594,179.31,179.23,43.74629594]
[1734914336237,43.74629594,179.3,179.22,43.74629594]
[1734914337115,43.74629594,179.29,179.22,43.74629594]
[1734914337321,43.74629594,179.27,179.2,50.03119594]
[1734914338351,43.74629594,179.27,179.19,43.74629594]
[1734914338564,43.74629594,179.23,179.15,49.85559594]
[1734914338768,43.74629594,179.22,179.15,49.85559594]
[1734914339266,43.74629594,179.19,179.12,43.74629594]
[1734914339446,43.74629594,179.18,179.11,43.74629594]
[1734914340125,43.74629594,179.18,179.1,6.9360395]
[1734914340126,43.74629594,179.23,179.12,0.83726854]
[1734914340344,43.74629594,179.26,179.18,43.74629594]